fUST/lending_fUST_20250221
["ID","MTS","AMOUNT","RATE_DAILY","PERIOD"]
[353816533,1740076246393,-500.0,0.00013863,2]
[353816534,1740076246404,-500.0,0.00013863,2]
[353816535,1740076246414,-505.90644954,0.00013863,2]
[353816536,1740076246424,-500.0,0.00013863,2]
[353816537,1740076246435,-500.0,0.00013863,2]
[353816538,1740076246444,-500.0,0.00013863,2]
[353816539,1740076246454,-788.73,0.00013863,2]
[353816540,1740076246464,-500.0,0.00013863,2]
[353816541,1740076246474,-500.0,0.00013863,2]
[353816542,1740076246484,-500.0,0.00013863,2]
[353816543,1740076246494,-500.0,0.00013863,2]
[353816544,1740076246503,-500.0,0.00013863,2]
[353816545,1740076246513,-500.0,0.00013863,2]
[353816546,1740076246523,-500.0,0.00013863,2]
[353816547,1740076246533,-982.3,0.00013863,2]
[353816548,1740076246543,-500.0,0.00013863,2]
[353816549,1740076246553,-500.0,0.00013863,2]
[353816550,1740076246563,-1729.35,0.00013863,2]
[353816551,1740076246572,-500.0,0.00013863,2]
[353816552,1740076246582,-630.66,0.00013863,2]
[353816553,1740076246592,-500.0,0.00013863,2]
[353816554,1740076246602,-500.0,0.00013863,2]
[353816555,1740076246611,-500.0,0.00013863,2]
[353816556,1740076246621,-500.0,0.00013863,2]
[353816557,1740076246631,-500.0,0.00013863,2]
[353816558,1740076246640,-542.67123986,0.00013863,2]
[353816559,1740076246654,-500.0,0.00013863,2]
[353816560,1740076246664,-500.0,0.00013863,2]
[353816561,1740076246673,-500.0,0.00013863,2]
[353816562,1740076246683,-1243.02,0.00013863,2]
[353816563,1740076246693,-779.92,0.00013863,2]
[353816564,1740076246703,-502.05271851,0.00013863,2]
[353816565,1740076246713,-500.0,0.00013863,2]
[353816566,1740076246723,-500.0,0.00013863,2]
[353816567,1740076246733,-748.47,0.00013863,2]
[353816568,1740076246743,-718.84,0.00013863,2]
[353816569,1740076246887,-500.0,0.00013863,2]
[353816570,1740076246897,-500.0,0.00013863,2]
[353816571,1740076246909,-542.464649,0.00013863,2]
[353816572,1740076246918,-375.03487146,0.00013863,2]
[353816573,1740076246928,-485.26428838,0.00013863,2]
[353816574,1740076246938,-500.0,0.00013863,2]
[353816575,1740076246948,-500.0,0.00013863,2]
[353816576,1740076246957,-500.0,0.00013863,2]
[353816577,1740076246967,-500.0,0.00013863,2]
[353816578,1740076246976,-543.33557352,0.00013863,2]
[353816579,1740076246985,-729.54,0.00013863,2]
[353816580,1740076246995,-500.0,0.00013863,2]
[353816581,1740076247005,-500.0,0.00013863,2]
[353816582,1740076247014,-500.0,0.00013863,2]
[353816583,1740076247023,-500.0,0.00013863,2]
[353816584,1740076247033,-500.0,0.00013863,2]
[353816585,1740076247042,-500.0,0.00013863,2]
[353816586,1740076247050,-500.0,0.00013863,2]
[353816587,1740076247059,-809.4,0.00013863,2]
[353816588,1740076247069,-500.0,0.00013863,2]
[353816589,1740076247079,-688.33,0.00013863,2]
[353816590,1740076247088,-702.25,0.00013863,2]
[353816591,1740076247097,-501.8015462,0.00013863,2]
[353816592,1740076247107,-500.0,0.00013863,2]
[353816593,1740076247116,-500.0,0.00013863,2]
[353816594,1740076247126,-500.0,0.00013863,2]
[353816595,1740076247135,-500.0,0.00013863,2]
[353816596,1740076247145,-500.0,0.00013863,2]
[353816597,1740076247157,-500.0,0.00013863,2]
[353816598,1740076247167,-500.0,0.00013863,2]
[353816599,1740076247177,-500.0,0.00013863,2]
[353816600,1740076247186,-1210.8,0.00013863,2]
[353816601,1740076247195,-500.0,0.00013863,2]
[353816602,1740076247204,-597.8,0.00013863,2]
[353816603,1740076247214,-691.73,0.00013863,2]
[353816604,1740076247224,-549.02,0.00013863,2]
[353816605,1740076247234,-500.0,0.00013863,2]
[353816606,1740076247243,-500.0,0.00013863,2]
[353816607,1740076247255,-500.0,0.00013863,2]
[353816608,1740076247264,-500.0,0.00013863,2]
[353816609,1740076247274,-500.0,0.00013863,2]
[353816610,1740076247283,-500.0,0.00013863,2]
[353816611,1740076247292,-500.0,0.00013863,2]
[353816612,1740076247302,-500.0,0.00013863,2]
[353816613,1740076247311,-500.0,0.00013863,2]
[353816614,1740076247320,-971.06,0.00013863,2]
[353816615,1740076247329,-500.0,0.00013863,2]
[353816616,1740076247337,-500.0,0.00013863,2]
[353816617,1740076247346,-500.0,0.00013863,2]
[353816618,1740076247355,-1489.95,0.00013863,2]
[353816619,1740076247364,-500.0,0.00013863,2]
[353816620,1740076247374,-500.0,0.00013863,2]
[353816621,1740076247383,-513.80523943,0.00013863,2]
[353816622,1740076247392,-500.0,0.00013863,2]
[353816623,1740076247401,-497.16,0.00013863,2]
[353816624,1740076247411,-500.0,0.00013863,2]
[353816625,1740076247420,-500.0,0.00013863,2]
[353816626,1740076247429,-500.0,0.00013863,2]
[353816627,1740076247439,-793.63,0.00013863,2]
[353816628,1740076247448,-500.0,0.00013863,2]
[353816629,1740076247458,-500.0,0.00013863,2]
[353816630,1740076247470,-199.30342082,0.00013863,2]
[353816631,1740076247479,-807.41,0.00013863,2]
[353816632,1740076247488,-358.75927071,0.00013863,2]
[353816633,1740076247498,-500.0,0.00013863,2]
[353816634,1740076247508,-500.0,0.00013863,2]
[353816635,1740076247517,-565.76,0.00013863,2]
[353816636,1740076247526,-500.0,0.00013863,2]
[353816637,1740076247536,-500.0,0.00013863,2]
[353816638,1740076247545,-500.0,0.00013863,2]
[353816639,1740076247555,-500.0,0.00013863,2]
[353816640,1740076247564,-500.0,0.00013863,2]
[353816641,1740076247574,-503.99027307,0.00013863,2]
[353816642,1740076247583,-625.95,0.00013863,2]
[353816643,1740076247593,-500.0,0.00013863,2]
[353816644,1740076247602,-500.0,0.00013863,2]
[353816645,1740076247611,-500.0,0.00013863,2]
[353816646,1740076247620,-500.0,0.00013863,2]
[353816647,1740076247630,-500.0,0.00013863,2]
[353816648,1740076247640,-10409.39,0.00013863,2]
[353816649,1740076247652,-865.67,0.00013863,2]
[353816650,1740076247661,-500.0,0.00013863,2]
[353816651,1740076247671,-605.73,0.00013863,2]
[353816652,1740076247680,-404.48,0.00013863,2]
[353816653,1740076247691,-17685.15,0.00013863,2]
[353816654,1740076247700,-500.0,0.00013863,2]
[353816655,1740076247710,-500.0,0.00013863,2]
[353816656,1740076247719,-500.0,0.00013863,2]
[353816657,1740076247731,-414.391,0.00013863,2]
[353816658,1740076247742,-500.0,0.00013863,2]
[353816659,1740076247751,-3965.85,0.00013863,2]
[353816660,1740076247760,-651.6,0.00013863,2]
[353816661,1740076247769,-2324.79,0.00013863,2]
[353816662,1740076247778,-500.0,0.00013863,2]
[353816663,1740076247788,-3893.67,0.00013863,2]
[353816664,1740076247797,-515.6339278,0.00013863,2]
[353816665,1740076247806,-729.57,0.00013863,2]
[353816666,1740076247815,-500.0,0.00013863,2]
[353816667,1740076247824,-907.2,0.00013863,2]
[353816668,1740076247833,-500.0,0.00013863,2]
[353816669,1740076247842,-825.36,0.00013863,2]
[353816670,1740076247852,-2151.45,0.00013863,2]
[353816671,1740076247861,-500.0,0.00013863,2]
[353816672,1740076247871,-500.0,0.00013863,2]
[353816673,1740076247880,-563.01843799,0.00013863,2]
[353816674,1740076247889,-1651.3,0.00013863,2]
[353816675,1740076247899,-500.0,0.00013863,2]
[353816676,1740076247910,-500.0,0.00013863,2]
[353816677,1740076247919,-500.0,0.00013863,2]
[353816678,1740076247928,-1126.07,0.00013863,2]
[353816679,1740076247937,-500.0,0.00013863,2]
[353816680,1740076247946,-635.52,0.00013863,2]
[353816681,1740076247955,-500.0,0.00013863,2]
[353816682,1740076247965,-1346.93,0.00013863,2]
[353816683,1740076247975,-624.92639399,0.00013863,2]
[353816684,1740076247984,-500.0,0.00013863,2]
[353816685,1740076247993,-506.92400394,0.00013863,2]
[353816686,1740076248003,-500.0,0.00013863,2]
[353816687,1740076248012,-1388.89,0.00013863,2]
[353816688,1740076248021,-500.0,0.00013863,2]
[353816689,1740076248031,-47036.24,0.00013863,2]
[353816690,1740076248040,-19791.69,0.00013863,2]
[353816691,1740076248050,-500.0,0.00013863,2]
[353816692,1740076248060,-500.0,0.00013863,2]
[353816693,1740076248069,-3512.59,0.00013863,2]
[353816694,1740076248079,-630.850242,0.00013863,2]
[353816695,1740076248089,-500.0,0.00013863,2]
[353816696,1740076248098,-2717.43,0.00013863,2]
[353816697,1740076248108,-500.0,0.00013863,2]
[353816698,1740076248117,-7818.5,0.00013863,2]
[353816699,1740076248127,-505.32613227,0.00013863,2]
[353816700,1740076248137,-636.51,0.00013863,2]
[353816701,1740076248146,-1361.67,0.00013863,2]
[353816702,1740076248157,-500.0,0.00013863,2]
[353816703,1740076248167,-1466.88,0.00013863,2]
[353816704,1740076248177,-500.0,0.00013863,2]
[353816705,1740076248188,-500.0,0.00013863,2]
[353816706,1740076248198,-521.88774525,0.00013863,2]
[353816707,1740076248208,-500.0,0.00013863,2]
[353816708,1740076248218,-500.0,0.00013863,2]
[353816709,1740076248228,-500.0,0.00013863,2]
[353816710,1740076248238,-1051.97,0.00013863,2]
[353816711,1740076248247,-4641.17,0.00013863,2]
[353816712,1740076248258,-4362.45,0.00013863,2]
[353816713,1740076248268,-500.0,0.00013863,2]
[353816714,1740076248278,-2680.77,0.00013863,2]
[353816715,1740076248288,-500.0,0.00013863,2]
[353816716,1740076248298,-500.0,0.00013863,2]
[353816717,1740076248307,-876.1,0.00013863,2]
[353816718,1740076248317,-500.0,0.00013863,2]
[353816719,1740076248326,-567.17,0.00013863,2]
[353816720,1740076248336,-2034.24,0.00013863,2]
[353816721,1740076248345,-612.16,0.00013863,2]
[353816722,1740076248355,-535.83,0.00013863,2]
[353816723,1740076248365,-527.16,0.00013863,2]
[353816724,1740076248374,-500.0,0.00013863,2]
[353816725,1740076248384,-500.0,0.00013863,2]
[353816726,1740076248394,-1517.61,0.00013863,2]
[353816727,1740076248404,-506.67,0.00013863,2]
[353816728,1740076248413,-500.0,0.00013863,2]
[353816729,1740076248423,-2602.51,0.00013863,2]
[353816730,1740076248432,-500.0,0.00013863,2]
[353816731,1740076248442,-1916.95,0.00013863,2]
[353816732,1740076248452,-500.0,0.00013863,2]
[353816733,1740076248461,-500.0,0.00013863,2]
[353816734,1740076248471,-500.0,0.00013863,2]
[353816735,1740076248481,-511.13,0.00013863,2]
[353816736,1740076248490,-500.0,0.00013863,2]
[353816737,1740076248500,-500.0,0.00013863,2]
[353816738,1740076248510,-500.0,0.00013863,2]
[353816739,1740076248520,-629.92,0.00013863,2]
[353816740,1740076248529,-500.0,0.00013863,2]
[353816741,1740076248538,-500.0,0.00013863,2]
[353816742,1740076248548,-5866.62,0.00013863,2]
[353816743,1740076248557,-2113.59,0.00013863,2]
[353816744,1740076248567,-500.0,0.00013863,2]
[353816745,1740076248577,-500.0,0.00013863,2]
[353816746,1740076248586,-500.0,0.00013863,2]
[353816747,1740076248595,-500.0,0.00013863,2]
[353816748,1740076248604,-500.0,0.00013863,2]
[353816749,1740076248613,-873.01,0.00013863,2]
[353816750,1740076248622,-2177.13,0.00013863,2]
[353816751,1740076248632,-500.0,0.00013863,2]
[353816752,1740076248642,-500.0,0.00013863,2]
[353816753,1740076248657,-500.0,0.00013863,2]
[353816754,1740076248667,-500.0,0.00013863,2]
[353816755,1740076248677,-662.43,0.00013863,2]
[353816756,1740076248688,-1620.44,0.00013863,2]
[353816757,1740076248697,-500.0,0.00013863,2]
[353816758,1740076248707,-500.0,0.00013863,2]
[353816759,1740076248717,-500.0,0.00013863,2]
[353816760,1740076248728,-500.0,0.00013863,2]
[353816761,1740076248738,-500.0,0.00013863,2]
[353816762,1740076248748,-189.0,0.000139,2]
[353816763,1740076248758,-605.42324317,0.00013925,2]
[353816764,1740076248768,-783.45349515,0.00013927,2]
[353816765,1740076248777,-783.45349515,0.00013927,2]
[353816766,1740076248786,-783.45349515,0.00013927,2]
[353816767,1740076248796,-783.45349515,0.00013927,2]
[353816768,1740076248805,-783.45349515,0.00013927,2]
[353816769,1740076248815,-783.45349515,0.00013927,2]
[353816770,1740076248824,-783.45349515,0.00013927,2]
[353816771,1740076248834,-783.45349515,0.00013927,2]
[353816772,1740076248844,-783.45349515,0.00013927,2]
[353816773,1740076248853,-783.45349515,0.00013927,2]
[353816774,1740076248862,-783.45349515,0.00013927,2]
[353816775,1740076248872,-783.45349515,0.00013927,2]
[353816776,1740076248981,-783.45349515,0.00013927,2]
[353816777,1740076248991,-783.45349515,0.00013927,2]
[353816778,1740076249001,-783.45349515,0.00013927,2]
[353816779,1740076249011,-783.45349515,0.00013927,2]
[353816780,1740076249021,-783.45349515,0.00013927,2]
[353816781,1740076249031,-783.45349515,0.00013927,2]
[353816782,1740076249041,-783.45349515,0.00013927,2]
[353816783,1740076249051,-783.45,0.00013927,2]
[353816784,1740076249060,-500.0,0.00013945,2]
[353816785,1740076249071,-500.0,0.00013945,2]
[353816786,1740076249081,-500.0,0.00013945,2]
[353816787,1740076249091,-500.0,0.00013945,2]
[353816788,1740076249100,-500.0,0.00013945,2]
[353816789,1740076249109,-500.0,0.00013945,2]
[353816790,1740076249119,-500.0,0.00013945,2]
[353816791,1740076249128,-500.0,0.00013945,2]
[353816792,1740076249138,-500.0,0.00013945,2]
[353816793,1740076249148,-500.0,0.00013945,2]
[353816794,1740076249159,-563.359996,0.00013945,2]
[353816795,1740076249168,-788.73,0.00013945,2]
[353816796,1740076249178,-500.0,0.00013945,2]
[353816797,1740076249187,-500.0,0.00013945,2]
[353816798,1740076249197,-500.0,0.00013945,2]
[353816799,1740076249208,-500.0,0.00013945,2]
[353816800,1740076249218,-500.0,0.00013945,2]
[353816801,1740076249228,-500.0,0.00013945,2]
[353816802,1740076249239,-218.58435177,0.00013945,2]
[353816803,1740076249249,-982.3,0.00013945,2]
[353816804,1740076249260,-500.0,0.00013945,2]
[353816805,1740076249270,-500.0,0.00013945,2]
[353816806,1740076249281,-1729.35,0.00013945,2]
[353816807,1740076249292,-500.0,0.00013945,2]
[353816808,1740076249303,-630.66,0.00013945,2]
[353816809,1740076249313,-500.0,0.00013945,2]
[353816810,1740076249323,-500.0,0.00013945,2]
[353816811,1740076249332,-500.0,0.00013945,2]
[353816812,1740076249342,-500.0,0.00013945,2]
[353816813,1740076249352,-500.0,0.00013945,2]
[353816814,1740076249361,-500.0,0.00013945,2]
[353816815,1740076249370,-500.0,0.00013945,2]
[353816816,1740076249381,-1243.02,0.00013945,2]
[353816817,1740076249391,-779.92,0.00013945,2]
[353816818,1740076249401,-748.47,0.00013945,2]
[353816819,1740076249411,-718.84,0.00013945,2]
[353816820,1740076249421,-500.0,0.00013945,2]
[353816821,1740076249431,-500.0,0.00013945,2]
[353816822,1740076249441,-500.0,0.00013945,2]
[353816823,1740076249452,-500.0,0.00013945,2]
[353816824,1740076249463,-729.54,0.00013945,2]
[353816825,1740076249473,-500.0,0.00013945,2]
[353816826,1740076249483,-500.0,0.00013945,2]
[353816827,1740076249493,-500.0,0.00013945,2]
[353816828,1740076249503,-500.0,0.00013945,2]
[353816829,1740076249514,-500.0,0.00013945,2]
[353816830,1740076249524,-809.4,0.00013945,2]
[353816831,1740076249533,-500.0,0.00013945,2]
[353816832,1740076249542,-688.33,0.00013945,2]
[353816833,1740076249552,-702.25,0.00013945,2]
[353816834,1740076249562,-500.0,0.00013945,2]
[353816835,1740076249573,-500.0,0.00013945,2]
[353816836,1740076249585,-500.0,0.00013945,2]
[353816837,1740076249596,-500.0,0.00013945,2]
[353816838,1740076249605,-500.0,0.00013945,2]
[353816839,1740076249615,-1210.8,0.00013945,2]
[353816840,1740076249624,-500.0,0.00013945,2]
[353816841,1740076249634,-597.8,0.00013945,2]
[353816842,1740076249644,-691.73,0.00013945,2]
[353816843,1740076249657,-549.02,0.00013945,2]
[353816844,1740076249667,-500.0,0.00013945,2]
[353816845,1740076249677,-500.0,0.00013945,2]
[353816846,1740076249688,-500.0,0.00013945,2]
[353816847,1740076249698,-500.0,0.00013945,2]
[353816848,1740076249707,-500.0,0.00013945,2]
[353816849,1740076249717,-500.0,0.00013945,2]
[353816850,1740076249728,-500.0,0.00013945,2]
[353816851,1740076249737,-500.0,0.00013945,2]
[353816852,1740076249747,-971.06,0.00013945,2]
[353816853,1740076249756,-500.0,0.00013945,2]
[353816854,1740076249766,-500.0,0.00013945,2]
[353816855,1740076249776,-500.0,0.00013945,2]
[353816856,1740076249785,-1489.95,0.00013945,2]
[353816857,1740076249795,-500.0,0.00013945,2]
[353816858,1740076249804,-500.0,0.00013945,2]
[353816859,1740076249815,-500.0,0.00013945,2]
[353816860,1740076249825,-500.0,0.00013945,2]
[353816861,1740076249835,-500.0,0.00013945,2]
[353816862,1740076249844,-500.0,0.00013945,2]
[353816863,1740076249853,-793.63,0.00013945,2]
[353816864,1740076249863,-500.0,0.00013945,2]
[353816865,1740076249872,-500.0,0.00013945,2]
[353816866,1740076249882,-807.41,0.00013945,2]
[353816867,1740076249892,-500.0,0.00013945,2]
[353816868,1740076249901,-151.75449317,0.00013945,2]
[353816869,1740076249911,-565.76,0.00013945,2]
[353816870,1740076249921,-500.0,0.00013945,2]
[353816871,1740076249931,-503.57087519,0.00013945,2]
[353816872,1740076249940,-500.0,0.00013945,2]
[353816873,1740076249949,-500.0,0.00013945,2]
[353816874,1740076249959,-625.95,0.00013945,2]
[353816875,1740076249969,-500.0,0.00013945,2]
[353816876,1740076249979,-500.0,0.00013945,2]
[353816877,1740076249989,-500.0,0.00013945,2]
[353816878,1740076249998,-500.0,0.00013945,2]
[353816879,1740076250008,-10409.39,0.00013945,2]
[353816880,1740076250017,-865.67,0.00013945,2]
[353816881,1740076250027,-500.0,0.00013945,2]
[353816882,1740076250036,-605.73,0.00013945,2]
[353816883,1740076250046,-17685.15,0.00013945,2]
[353816884,1740076250055,-500.0,0.00013945,2]
[353816885,1740076250065,-500.0,0.00013945,2]
[353816886,1740076250074,-500.0,0.00013945,2]
[353816887,1740076250083,-500.0,0.00013945,2]
[353816888,1740076250092,-3965.85,0.00013945,2]
[353816889,1740076250102,-651.6,0.00013945,2]
[353816890,1740076250112,-2324.79,0.00013945,2]
[353816891,1740076250121,-500.0,0.00013945,2]
[353816892,1740076250131,-3893.67,0.00013945,2]
[353816893,1740076250141,-729.57,0.00013945,2]
[353816894,1740076250151,-500.0,0.00013945,2]
[353816895,1740076250162,-907.2,0.00013945,2]
[353816896,1740076250172,-500.0,0.00013945,2]
[353816897,1740076250182,-825.36,0.00013945,2]
[353816898,1740076250192,-2151.45,0.00013945,2]
[353816899,1740076250202,-500.0,0.00013945,2]
[353816900,1740076250212,-500.0,0.00013945,2]
[353816901,1740076250221,-1651.3,0.00013945,2]
[353816902,1740076250230,-500.0,0.00013945,2]
[353816903,1740076250239,-461.56442783,0.00013945,2]
[353816904,1740076250248,-1126.07,0.00013945,2]
[353816905,1740076250259,-500.0,0.00013945,2]
[353816906,1740076250270,-635.52,0.00013945,2]
[353816907,1740076250279,-500.0,0.00013945,2]
[353816908,1740076250288,-1346.93,0.00013945,2]
[353816909,1740076250298,-500.0,0.00013945,2]
[353816910,1740076250308,-500.0,0.00013945,2]
[353816911,1740076250318,-1388.89,0.00013945,2]
[353816912,1740076250327,-500.0,0.00013945,2]
[353816913,1740076250337,-47036.24,0.00013945,2]
[353816914,1740076250346,-19791.69,0.00013945,2]
[353816915,1740076250356,-500.0,0.00013945,2]
[353816916,1740076250366,-500.0,0.00013945,2]
[353816917,1740076250376,-3512.59,0.00013945,2]
[353816918,1740076250385,-2717.43,0.00013945,2]
[353816919,1740076250395,-500.0,0.00013945,2]
[353816920,1740076250405,-7818.5,0.00013945,2]
[353816921,1740076250414,-636.51,0.00013945,2]
[353816922,1740076250424,-1361.67,0.00013945,2]
[353816923,1740076250434,-500.0,0.00013945,2]
[353816924,1740076250443,-1466.88,0.00013945,2]
[353816925,1740076250452,-500.0,0.00013945,2]
[353816926,1740076250462,-500.0,0.00013945,2]
[353816927,1740076250473,-500.0,0.00013945,2]
[353816928,1740076250483,-500.0,0.00013945,2]
[353816929,1740076250492,-500.0,0.00013945,2]
[353816930,1740076250502,-1051.97,0.00013945,2]
[353816931,1740076250512,-4641.17,0.00013945,2]
[353816932,1740076250521,-4362.45,0.00013945,2]
[353816933,1740076250531,-500.0,0.00013945,2]
[353816934,1740076250540,-2680.77,0.00013945,2]
[353816935,1740076250550,-336.5431947,0.00013945,2]
[353816936,1740076250560,-500.0,0.00013945,2]
[353816937,1740076250571,-876.1,0.00013945,2]
[353816938,1740076250581,-500.0,0.00013945,2]
[353816939,1740076250590,-567.17,0.00013945,2]
[353816940,1740076250600,-2034.24,0.00013945,2]
[353816941,1740076250609,-612.16,0.00013945,2]
[353816942,1740076250619,-535.83,0.00013945,2]
[353816943,1740076250628,-527.16,0.00013945,2]
[353816944,1740076250637,-500.0,0.00013945,2]
[353816945,1740076250649,-500.0,0.00013945,2]
[353816946,1740076250661,-1517.61,0.00013945,2]
[353816947,1740076250670,-506.67,0.00013945,2]
[353816948,1740076250680,-500.0,0.00013945,2]
[353816949,1740076250691,-2602.51,0.00013945,2]
[353816950,1740076250701,-1916.95,0.00013945,2]
[353816951,1740076250710,-500.0,0.00013945,2]
[353816952,1740076250719,-500.0,0.00013945,2]
[353816953,1740076250731,-511.13,0.00013945,2]
[353816954,1740076250741,-500.0,0.00013945,2]
[353816955,1740076250751,-500.0,0.00013945,2]
[353816956,1740076250761,-500.0,0.00013945,2]
[353816957,1740076250770,-629.92,0.00013945,2]
[353816958,1740076250780,-500.0,0.00013945,2]
[353816959,1740076250789,-500.0,0.00013945,2]
[353816960,1740076250799,-5866.62,0.00013945,2]
[353816961,1740076250809,-2113.59,0.00013945,2]
[353816962,1740076250819,-500.0,0.00013945,2]
[353816963,1740076250828,-500.0,0.00013945,2]
[353816964,1740076250838,-569.05175497,0.00013945,2]
[353816965,1740076250848,-500.0,0.00013945,2]
[353816966,1740076250941,-873.01,0.00013945,2]
[353816967,1740076250961,-2177.13,0.00013945,2]
[353816968,1740076250971,-500.0,0.00013945,2]
[353816969,1740076250981,-500.00569627,0.00013945,2]
[353816970,1740076250991,-662.43,0.00013945,2]
[353816971,1740076251000,-1620.44,0.00013945,2]
[353816972,1740076251010,-500.0,0.00013945,2]
[353816973,1740076251019,-447.67448452,0.00013945,2]
[353816974,1740076251029,-500.0,0.00013945,2]
[353816975,1740076251039,-500.0,0.00013945,2]
[353816976,1740076251049,-1020.454338,0.00013945,2]
[353816977,1740076251058,-906.40242204,0.00013982,2]
[353816978,1740076251068,-1334.8751211,0.00014009,2]
[353816979,1740076251078,-500.0,0.00014027,2]
[353816980,1740076251087,-500.0,0.00014027,2]
[353816981,1740076251097,-500.0,0.00014027,2]
[353816982,1740076251107,-500.0,0.00014027,2]
[353816983,1740076251117,-500.0,0.00014027,2]
[353816984,1740076251126,-500.0,0.00014027,2]
[353816985,1740076251136,-500.0,0.00014027,2]
[353816986,1740076251145,-500.0,0.00014027,2]
[353816987,1740076251157,-500.0,0.00014027,2]
[353816988,1740076251167,-500.0,0.00014027,2]
[353816989,1740076251176,-788.73,0.00014027,2]
[353816990,1740076251186,-457.55599559,0.00014027,2]
[353816991,1740076251195,-500.0,0.00014027,2]
[353816992,1740076251205,-500.0,0.00014027,2]
[353816993,1740076251214,-500.0,0.00014027,2]
[353816994,1740076251223,-500.0,0.00014027,2]
[353816995,1740076251234,-500.0,0.00014027,2]
[353816996,1740076251243,-982.3,0.00014027,2]
[353816997,1740076251253,-500.0,0.00014027,2]
[353816998,1740076251263,-500.0,0.00014027,2]
[353816999,1740076251273,-1729.35,0.00014027,2]
[353817000,1740076251282,-500.0,0.00014027,2]
[353817001,1740076251292,-630.66,0.00014027,2]
[353817002,1740076251301,-364.87954545,0.00014027,2]
[353817003,1740076251310,-328.59979022,0.00014027,2]
[353817004,1740076251320,-500.0,0.00014027,2]
[353817005,1740076251330,-500.0,0.00014027,2]
[353817006,1740076251339,-503.24733582,0.00014027,2]
[353817007,1740076251349,-500.0,0.00014027,2]
[353817008,1740076251358,-1243.02,0.00014027,2]
[353817009,1740076251368,-779.92,0.00014027,2]
[353817010,1740076251378,-748.47,0.00014027,2]
[353817011,1740076251388,-718.84,0.00014027,2]
[353817012,1740076251397,-500.0,0.00014027,2]
[353817013,1740076251410,-500.0,0.00014027,2]
[353817014,1740076251420,-500.0,0.00014027,2]
[353817015,1740076251430,-729.54,0.00014027,2]
[353817016,1740076251440,-500.0,0.00014027,2]
[353817017,1740076251450,-500.0,0.00014027,2]
[353817018,1740076251460,-500.0,0.00014027,2]
[353817019,1740076251470,-500.0,0.00014027,2]
[353817020,1740076251479,-500.0,0.00014027,2]
[353817021,1740076251489,-809.4,0.00014027,2]
[353817022,1740076251498,-500.0,0.00014027,2]
[353817023,1740076251508,-688.33,0.00014027,2]
[353817024,1740076251517,-702.25,0.00014027,2]
[353817025,1740076251527,-500.0,0.00014027,2]
[353817026,1740076251537,-500.0,0.00014027,2]
[353817027,1740076251546,-500.0,0.00014027,2]
[353817028,1740076251555,-500.0,0.00014027,2]
[353817029,1740076251565,-500.0,0.00014027,2]
[353817030,1740076251575,-1210.8,0.00014027,2]
[353817031,1740076251585,-597.8,0.00014027,2]
[353817032,1740076251595,-691.73,0.00014027,2]